bitfinex/quotes_ETHUSD_20250329
["timestamp","ask_amount","ask_price","bid_price","bid_amount"]
[1743261094999,1.14176101,1849.9,1849.7,15.95222]
[1743261095199,1.14176101,1849.9,1849.8,5.40598]
[1743261105942,1.14176101,1849.9,1849.8,10.54598]
[1743261108945,2.46225347,1849.9,1849.8,10.54598]
[1743261111321,1.14176101,1849.9,1849.8,10.54598]
[1743261111724,0.38306101,1849.9,1849.8,11.51192841]
[1743261117062,0.38306101,1849.9,1849.8,12.29782841]
[1743261119533,1e-05,1849.9,1849.8,12.29782841]
[1743261127062,1e-05,1849.9,1849.8,6.37192841]
[1743261127264,1e-05,1849.9,1849.8,11.50992841]
[1743261127650,0.31934734,1849.9,1849.8,11.50992841]
[1743261129253,0.31934734,1849.9,1849.8,12.26822841]
[1743261129690,1e-05,1849.9,1849.8,12.26822841]
[1743261136503,1e-05,1849.9,1849.8,6.37192841]
[1743261136725,1e-05,1849.9,1849.8,10.54398]
[1743261137080,0.30959506,1849.9,1849.8,10.54398]
[1743261137308,1e-05,1849.9,1849.8,10.54398]
[1743261137511,0.30959506,1849.9,1849.8,10.54398]
[1743261142108,1e-05,1849.9,1849.8,10.54398]
[1743261142308,1e-05,1849.9,1849.8,12.138983]
[1743261142543,0.30987046,1849.9,1849.8,12.138983]
[1743261143347,0.30987046,1849.9,1849.8,12.947183]
[1743261143751,1e-05,1849.9,1849.8,12.947183]
[1743261145453,0.8255,1849.8,1849.5,5.138]
[1743261145653,0.8255,1849.8,1849.5,15.95133]
[1743261145954,0.30979014,1849.7,1849.6,5.40644]
[1743261146324,0.8255,1849.8,1849.6,5.40644]
[1743261146520,3.8255,1849.8,1849.5,10.54474]
[1743261146740,0.8255,1849.7,1849.5,10.54474]
[1743261147058,1.1336722,1849.7,1849.5,15.95139]
[1743261147944,0.8255,1849.6,1849.5,10.54465]
[1743261148517,1.13343962,1849.6,1849.5,10.54465]
[1743261156044,1.13343962,1849.6,1849.5,5.138]
[1743261156447,5.40705,1849.5,1849.1,5.40783]
[1743261156666,0.7862,1849.2,1849.1,5.138]
[1743261157158,1.0900549,1849.2,1849.1,5.138]
[1743261159586,1.0900549,1849.2,1849.1,10.54603]
[1743261160298,0.7862,1849.2,1849.1,10.54603]
[1743261160597,0.7862,1849.2,1849.1,5.138]
[1743261161005,1.0891591,1849.2,1849.1,10.54603]
[1743261161480,1.0891591,1849.2,1849.1,5.138]
[1743261162371,1.0891591,1849.2,1849.1,10.54603]
[1743261162675,1.0891591,1849.2,1849.1,5.138]
[1743261164000,1.0891591,1849.2,1849.1,10.54603]
[1743261164591,1.0891591,1849.2,1849.1,5.138]
[1743261168414,1.96568096,1849.2,1849.1,5.138]
[1743261170222,1.96568096,1849.2,1848.9,10.54742]
[1743261170519,1.0891591,1849.2,1848.9,10.54742]
[1743261170714,1.0891591,1849.2,1848.9,15.95588]
[1743261170921,1.0891591,1849.2,1848.9,10.54742]
[1743261171121,1.0891591,1849.2,1848.9,15.95584]
[1743261171322,2.26858945,1849.1,1848.9,5.139]
[1743261171481,0.7856,1849.0,1848.9,5.139]
[1743261171888,1.08779785,1849.0,1848.9,5.139]
[1743261172087,1.08779785,1849.0,1848.9,10.54762]
[1743261177288,0.30219785,1849.0,1848.9,10.54762]
[1743261177493,0.30219785,1849.0,1848.9,12.143259]
[1743261177991,0.7856,1849.2,1849.0,10.81623]
[1743261178202,0.30121467,1849.1,1849.0,10.81623]
[1743261178819,0.30121467,1849.1,1849.0,5.4081]
[1743261179121,2.56980412,1849.1,1849.0,5.4081]
[1743261180023,2.56980412,1849.1,1848.9,10.54756]
[1743261180228,2.90534453,1849.1,1848.9,10.54756]
[1743261181630,2.90534453,1849.1,1848.9,5.139]
[1743261181815,0.7856,1849.0,1848.8,5.139]
[1743261182130,2.54348021,1848.9,1848.8,5.139]
[1743261182514,0.27489076,1848.9,1848.8,10.54791]
[1743261183116,3.05418945,1849.1,1848.9,5.4085]
[1743261183491,3.05418945,1849.1,1848.9,10.81698]
[1743261183715,3.05418945,1849.1,1848.9,5.40848]
[1743261184118,0.27499593,1849.0,1848.9,5.40848]
[1743261184297,0.60791447,1849.0,1848.7,5.40915]
[1743261184611,13.90053945,1848.9,1848.6,5.139]
[1743261184811,2.26858945,1848.7,1848.6,5.139]
[1743261185126,2.54204982,1848.7,1848.4,5.41007]
[1743261185423,0.8146,1848.6,1848.4,5.139]
[1743261185617,2.54122124,1848.5,1848.4,5.139]
[1743261186220,2.54122124,1848.5,1848.4,10.54908]
[1743261187718,0.27263179,1848.5,1848.4,10.54908]
[1743261188442,3.08318945,1848.7,1848.4,10.54908]
[1743261188616,0.27282205,1848.6,1848.5,5.40972]
[1743261188818,3.08318945,1848.7,1848.5,5.40972]
[1743261189019,0.27282205,1848.6,1848.5,5.40972]
[1743261189238,3.08318945,1848.7,1848.5,5.40972]
[1743261189441,0.27282205,1848.6,1848.5,5.40972]
[1743261189643,3.08318945,1848.7,1848.5,5.40972]
[1743261189951,0.27282205,1848.6,1848.5,5.40972]
[1743261190756,0.8146,1848.7,1848.5,5.40972]
[1743261190954,0.27184602,1848.6,1848.5,5.40972]
[1743261191247,3.08318945,1848.7,1848.5,5.40972]
[1743261191454,0.2703078,1848.6,1848.5,5.40972]
[1743261191642,3.08318945,1848.7,1848.5,5.40972]
[1743261191865,0.2703078,1848.6,1848.5,5.40972]
[1743261192054,3.08318945,1848.7,1848.5,5.40972]
[1743261192249,0.2703078,1848.6,1848.5,5.40972]
[1743261192463,3.69150839,1848.7,1848.5,5.40972]
[1743261192667,0.2703078,1848.6,1848.5,5.40972]
[1743261192981,3.69150839,1848.7,1848.5,5.40972]
[1743261193176,0.2703078,1848.6,1848.5,5.40972]
[1743261193477,3.69150839,1848.7,1848.5,5.40972]
[1743261193678,0.2703078,1848.6,1848.5,5.40972]
[1743261193879,3.69150839,1848.7,1848.5,5.40972]
[1743261194180,0.2703078,1848.6,1848.4,10.54908]
[1743261194384,3.05338945,1848.5,1848.2,5.4106]
[1743261194585,2.26858945,1848.3,1848.1,5.41082]
[1743261194763,2.26858945,1848.3,1848.1,5.41075]
[1743261195078,0.26933344,1848.2,1848.1,5.41075]
[1743261195279,0.26933344,1848.2,1847.9,10.55049]
[1743261195280,1.05413344,1848.2,1847.9,10.55049]
[1743261195579,2.26858945,1848.1,1847.9,5.41149]
[1743261195750,2.26858945,1848.1,1847.9,10.55049]
[1743261195950,0.26598833,1848.0,1847.9,10.55049]
[1743261196348,0.26598833,1848.0,1847.8,10.55083]
[1743261196650,1.05078833,1848.0,1847.8,10.55083]
[1743261196875,1.05078833,1848.0,1847.8,5.41183]
[1743261197078,1.38272611,1848.0,1847.8,5.139]
[1743261197283,1.38272611,1848.0,1847.8,10.55083]
[1743261198156,1.05078833,1848.0,1847.8,15.96251]
[1743261199700,1.05078833,1848.0,1847.8,10.55068]
[1743261200999,3.07678945,1847.9,1847.6,10.56826]
[1743261201296,0.26560738,1847.8,1847.6,10.56826]
[1743261201462,3.07678945,1847.9,1847.6,10.56826]
[1743261201463,2.26858945,1847.7,1847.6,5.156]
[1743261201666,2.53400632,1847.7,1847.6,5.156]
[1743261202075,3.34220632,1847.7,1847.6,0.016]
[1743261205611,6.34220632,1847.7,1847.6,0.016]
[1743261206375,6.34220632,1847.7,1847.6,5.42842]
[1743261206581,6.34220632,1847.7,1847.6,0.016]
[1743261206881,7.00719485,1847.7,1847.6,0.016]
[1743261207816,4.00719485,1847.7,1847.6,0.016]
[1743261210215,6.19899485,1847.7,1847.6,5.42842]
[1743261210519,5.53400632,1847.7,1847.6,0.016]
[1743261216207,0.26541687,1847.7,1847.6,5.42842]
[1743261216613,2.26858945,1848.1,1847.9,5.4113]
[1743261216824,2.26858945,1848.1,1848.0,5.41125]
[1743261220021,0.759,1848.3,1848.1,5.41096]
[1743261220022,3.02758945,1848.3,1848.1,5.41096]
[1743261220222,2.26858945,1848.6,1848.3,5.41014]
[1743261220435,5.26858945,1848.6,1848.4,5.40994]
[1743261220640,2.26858945,1848.6,1848.3,5.41014]
[1743261220842,5.26858945,1848.6,1848.3,5.41014]
[1743261221042,5.26858945,1848.6,1848.3,10.8203]
[1743261221247,6.4122694,1848.6,1848.3,5.41014]
[1743261221747,6.4122694,1848.6,1848.3,11.61379]
[1743261222043,5.26858945,1848.6,1848.4,5.41006]
[1743261222250,5.26858945,1848.6,1848.4,5.40985]
[1743261222435,2.26858945,1848.6,1848.5,5.40979]
[1743261222635,2.26858945,1848.6,1848.4,10.8198]
[1743261223847,2.26858945,1848.6,1848.4,5.40985]
[1743261225043,2.26858945,1848.6,1848.3,10.82061]
[1743261225343,2.26858945,1848.6,1848.3,10.82049]
[1743261225717,2.26858945,1848.6,1848.4,5.41006]
[1743261227338,2.26858945,1848.6,1848.4,10.82003]
[1743261228155,2.26858945,1848.6,1848.4,5.40997]
[1743261228522,2.26858945,1848.6,1848.5,5.40979]
[1743261229051,2.26858945,1848.6,1848.4,5.40997]
[1743261229240,2.49375147,1848.6,1848.4,5.40997]
[1743261229942,2.49375147,1848.6,1848.4,10.81986]
[1743261230343,2.49375147,1848.6,1848.4,10.81975]
[1743261232349,2.49375147,1848.6,1848.4,5.40986]
[1743261233552,0.22516202,1848.6,1848.5,5.40979]
[1743261233850,2.26858945,1849.0,1848.5,6.17019]
[1743261234054,2.26858945,1849.0,1848.9,5.40862]
[1743261235758,2.26858945,1849.3,1848.8,0.7604]
[1743261236058,2.26858945,1849.3,1849.2,5.40774]
[1743261236221,5.26858945,1849.3,1849.2,5.40774]
[1743261237083,2.26858945,1849.3,1849.2,5.40774]
[1743261240680,2.26858945,1849.5,1849.3,5.40738]
[1743261241586,2.26858945,1849.5,1849.3,10.81457]
[1743261242083,2.26858945,1849.5,1849.3,5.40719]
[1743261244071,0.23079336,1849.4,1849.2,5.40772]
[1743261244262,3.23079336,1849.4,1849.2,5.40772]
[1743261245693,2.26858945,1849.3,1849.2,5.40772]
[1743261245892,2.49932014,1849.3,1849.1,5.40802]
[1743261246053,5.40788,1849.2,1848.8,10.54475]
[1743261246358,5.40788,1849.2,1848.8,15.95342]
[1743261246359,2.26858945,1848.9,1848.8,15.95342]
[1743261246786,2.49871274,1848.9,1848.8,15.95342]
[1743261246964,0.23012329,1848.9,1848.8,15.95342]
[1743261247490,3.06508945,1849.3,1849.1,5.40802]
[1743261248363,3.06508945,1849.3,1849.0,5.40824]
[1743261248685,3.06508945,1849.3,1849.0,5.40813]
[1743261250270,3.06508945,1849.3,1849.0,10.81628]
[1743261250688,2.26858945,1849.3,1849.0,10.81628]
[1743261250869,2.26858945,1849.3,1849.1,5.40803]
[1743261251068,2.26858945,1849.3,1849.2,5.40774]
[1743261251767,5.26858945,1849.5,1849.2,5.40774]
[1743261252589,7.0217704,1849.5,1849.2,5.40774]
[1743261253286,7.0217704,1849.5,1849.2,10.54374]
[1743261255778,5.26858945,1849.5,1849.2,10.54374]
[1743261256190,5.26858945,1849.5,1849.3,5.40727]
[1743261257002,5.26858945,1849.5,1849.2,10.54365]
[1743261258699,5.26858945,1849.5,1849.2,15.95126]
[1743261258867,5.26858945,1849.5,1849.2,10.54361]
[1743261259197,0.2317184,1849.4,1849.2,10.54361]
[1743261259397,0.2317184,1849.4,1849.3,5.40745]
[1743261260097,0.2317184,1849.4,1849.2,10.54355]
[1743261261200,0.2317184,1849.4,1849.3,5.40745]
[1743261262905,0.2317184,1849.4,1849.2,10.54365]
[1743261264808,0.2317184,1849.4,1849.3,5.40745]
[1743261265526,0.2317184,1849.4,1849.2,10.54355]
[1743261270092,0.2317184,1849.4,1849.2,5.136]
[1743261270440,2.26858945,1849.3,1849.2,5.136]
[1743261270987,2.50045791,1849.3,1849.2,5.136]
[1743261272738,2.50045791,1849.3,1849.0,5.40814]
[1743261272739,3.0,1849.0,1848.6,6.21106]
[1743261273038,8.73822379,1848.9,1848.6,5.134]
[1743261273334,2.26858945,1848.7,1848.5,10.54364]
[1743261273539,0.22934934,1848.6,1848.5,10.54364]
[1743261273738,2.26858945,1848.7,1848.5,10.54364]
[1743261273894,2.26858945,1848.7,1848.6,5.40949]
[1743261274220,2.49812911,1848.7,1848.6,5.40949]
[1743261275594,0.22953966,1848.7,1848.6,5.40949]
[1743261275928,3.09918945,1848.9,1848.7,5.40908]
[1743261276127,0.22972995,1848.8,1848.6,5.40949]
[1743261276296,3.09918945,1848.9,1848.6,5.40949]
[1743261276496,0.22972995,1848.8,1848.6,5.40935]
[1743261276707,3.09918945,1848.9,1848.7,5.4092]
[1743261276906,0.22813905,1848.8,1848.7,5.4092]
[1743261277121,3.09918945,1848.9,1848.7,5.4092]
[1743261277298,0.22813905,1848.8,1848.7,5.4092]
[1743261277494,3.09918945,1848.9,1848.7,5.4092]
[1743261277699,0.22813905,1848.8,1848.6,5.40935]
[1743261277922,3.09918945,1848.9,1848.6,5.40929]
[1743261278124,0.22813905,1848.8,1848.6,5.40929]
[1743261278299,3.09918945,1848.9,1848.6,5.40929]
[1743261278503,0.22813905,1848.8,1848.6,5.40929]
[1743261278700,3.09918945,1848.9,1848.6,5.40929]
[1743261278921,0.22813905,1848.8,1848.6,5.40929]
[1743261279121,3.09918945,1848.9,1848.6,5.40929]
[1743261279317,0.22813905,1848.8,1848.6,5.40929]
[1743261279630,3.09918945,1848.9,1848.6,5.40929]
[1743261279831,0.22794875,1848.7,1848.6,5.40929]
[1743261279995,3.09918945,1848.9,1848.6,5.40929]
[1743261280195,0.22798335,1848.7,1848.6,5.40929]
[1743261280524,0.22798335,1848.7,1848.5,10.54376]
[1743261280734,8.50794945,1848.9,1848.5,10.54376]
[1743261280909,0.22817365,1848.8,1848.5,10.54376]
[1743261281112,10.19957739,1848.9,1848.5,10.54376]
[1743261281429,0.22817365,1848.8,1848.5,10.54376]
[1743261281614,6.18744,1848.6,1848.4,5.134]
[1743261281803,2.88733345,1848.5,1848.2,5.41038]
[1743261282011,2.49610684,1848.5,1848.3,5.134]
[1743261282235,2.49610684,1848.5,1848.3,10.54436]
[1743261283127,2.49610684,1848.5,1848.3,15.95462]
[1743261283336,2.49610684,1848.5,1848.4,5.41008]
[1743261284539,2.49610684,1848.5,1848.3,10.54426]
[1743261285433,2.49610684,1848.5,1848.3,5.134]
[1743261286546,2.49610684,1848.5,1848.3,10.54418]
[1743261296036,2.49610684,1848.5,1848.3,10.54431]
[1743261297958,2.49610684,1848.5,1848.3,5.134]
[1743261298544,2.49610684,1848.5,1847.9,5.135]
[1743261298545,6.19437,1848.2,1847.9,5.135]
[1743261298719,2.26858945,1848.0,1847.9,5.135]
[1743261299045,2.49242427,1848.0,1847.9,5.135]
[1743261301023,2.49242427,1848.0,1847.7,5.41198]
[1743261301229,2.49242427,1848.0,1847.7,10.54698]
[1743261301428,0.7836,1847.9,1847.6,5.4284]
[1743261301624,0.7836,1847.9,1847.7,5.135]
[1743261301828,2.49003254,1847.8,1847.7,5.135]
[1743261302349,0.22144309,1847.8,1847.7,11.31643]
[1743261302541,2.26858945,1848.0,1847.9,5.41154]
[1743261302739,2.49041339,1848.0,1847.9,5.41154]
[1743261302922,2.49041339,1848.0,1847.8,5.41173]
[1743261306661,0.22182394,1848.0,1847.9,5.41154]
[1743261306821,0.22182394,1848.0,1847.9,6.22804]
[1743261307151,5.26858945,1848.3,1848.1,5.41092]
[1743261307321,5.26858945,1848.3,1848.1,10.54592]
[1743261308444,5.26858945,1848.3,1848.1,5.135]
[1743261308746,7.1122754,1848.3,1848.1,5.135]
[1743261310272,12.5227154,1848.3,1848.1,5.135]
[1743261310625,7.1122754,1848.3,1848.1,5.135]
[1743261312252,6.04438945,1848.3,1848.1,10.5458]
[1743261312453,5.26858945,1848.3,1848.1,10.5458]
[1743261312625,3.04438945,1848.5,1848.2,10.82113]
[1743261312825,2.26858945,1848.5,1848.3,5.41025]
[1743261314033,2.26858945,1848.5,1848.2,5.41047]
[1743261314034,2.26858945,1848.5,1848.2,5.4106]
[1743261314526,2.26858945,1848.5,1848.3,5.41035]
[1743261316856,2.26858945,1848.5,1848.3,10.82061]
[1743261317159,2.26858945,1848.5,1848.4,5.41008]
[1743261317331,5.26858945,1848.7,1848.4,5.41008]
[1743261317846,6.4139214,1848.7,1848.4,5.41008]
[1743261319031,0.22410842,1848.6,1848.4,5.41008]
[1743261319432,5.26858945,1848.7,1848.4,5.41008]
[1743261319661,0.22391813,1848.5,1848.4,5.41008]
[1743261319862,5.26858945,1848.7,1848.4,5.41008]
[1743261320376,0.22410842,1848.6,1848.4,5.41008]
[1743261320681,5.26858945,1848.7,1848.4,5.41008]
[1743261320847,0.22391813,1848.5,1848.4,5.41008]
[1743261321050,5.26858945,1848.7,1848.4,5.41008]
[1743261321559,0.22410842,1848.6,1848.4,5.41008]
[1743261321755,5.26858945,1848.7,1848.4,5.41008]
[1743261321974,0.22410842,1848.6,1848.4,5.41008]
[1743261322175,5.26858945,1848.7,1848.4,5.41008]
[1743261322373,0.22410842,1848.6,1848.4,5.41008]
[1743261322703,3.04438945,1848.8,1848.5,5.40966]
[1743261322857,0.22391813,1848.5,1848.4,6.569874]
[1743261323188,3.0,1848.8,1848.5,5.40979]
[1743261323494,3.0,1848.8,1848.5,15.95358]
[1743261323689,3.0,1848.8,1848.5,10.54379]
[1743261325888,3.0,1848.6,1848.5,5.134]
[1743261326188,3.0,1848.6,1848.2,5.41065]
[1743261326189,9.17681,1848.6,1848.4,5.134]
[1743261326388,2.26858945,1848.5,1848.4,5.134]
[1743261328166,2.26858945,1848.5,1848.4,10.54408]
[1743261328376,3.7672,1848.6,1848.4,10.54408]
[1743261328595,3.0,1848.6,1848.4,17.549415]
[1743261329595,3.0,1848.6,1848.4,10.54391]
[1743261329969,2.26858945,1848.7,1848.4,10.54391]
[1743261331100,2.26858945,1848.7,1848.4,16.73142]
[1743261331304,6.03578945,1848.9,1848.6,5.40926]
[1743261333009,11.44451945,1848.9,1848.5,5.40969]
[1743261333217,3.0,1848.8,1848.5,5.40967]
[1743261333502,2.26858945,1848.7,1848.5,5.40967]
[1743261334009,0.40187738,1848.6,1848.5,5.40967]
[1743261334311,2.26858945,1848.7,1848.5,5.40967]
[1743261334601,0.40191753,1848.6,1848.5,5.4096]
[1743261334809,2.26858945,1848.7,1848.5,12.492287]
[1743261334980,3.0,1848.8,1848.6,5.40948]
[1743261337325,3.0,1848.8,1848.6,10.8188]
[1743261337499,3.0,1848.8,1848.6,5.40932]
[1743261340924,7.67726945,1848.9,1848.6,5.40932]
[1743261341098,2.26858945,1848.9,1848.6,5.40932]
[1743261342113,2.26858945,1848.9,1848.6,10.81865]
[1743261342312,2.26858945,1848.9,1848.6,5.40932]
[1743261342928,5.41003,1848.5,1848.1,5.41078]
[1743261343110,5.41003,1848.5,1848.0,5.133]
[1743261343111,2.26858945,1848.3,1848.0,5.133]
[1743261343307,2.26858945,1848.3,1848.0,10.54424]
[1743261343502,2.26858945,1848.3,1848.0,15.95526]
[1743261343703,2.26858945,1848.3,1848.1,5.4108]
[1743261343905,2.26858945,1848.3,1848.0,10.54419]
[1743261344303,2.26858945,1848.3,1848.0,15.95528]
[1743261344504,2.26858945,1848.3,1848.0,10.54409]
[1743261344734,0.8046,1848.2,1847.9,5.41154]
[1743261344937,2.26858945,1848.1,1847.9,5.132]
[1743261346439,2.26858945,1848.1,1847.9,10.54348]
[1743261349112,0.39886758,1848.0,1847.9,10.54348]
[1743261349336,0.8046,1848.2,1848.0,5.41114]
[1743261349639,1.15325221,1848.2,1847.9,10.54348]
[1743261349938,0.39920862,1848.1,1847.9,10.54348]
[1743261350309,1.15325221,1848.2,1847.9,10.54348]
[1743261350508,0.39902876,1848.0,1847.9,10.54348]
[1743261350733,1.15325221,1848.2,1847.9,10.54348]
[1743261350908,0.39902876,1848.0,1847.9,10.54348]
[1743261351116,6.2153,1848.2,1847.8,6.22728]
[1743261351316,0.39902876,1848.0,1847.8,10.54468]
[1743261351625,0.39884889,1847.9,1847.8,10.54468]
[1743261351829,2.26858945,1848.1,1847.8,10.54468]
[1743261352007,0.39884889,1847.9,1847.7,10.54507]
[1743261352206,7.67954945,1848.1,1847.7,10.54507]
[1743261352410,0.39902876,1848.0,1847.7,10.54507]
[1743261352811,0.39902876,1848.0,1847.7,15.95698]
[1743261353750,0.39902876,1848.0,1847.8,5.41173]
[1743261355245,0.39902876,1848.0,1847.7,15.95691]
[1743261355821,0.39902876,1848.0,1847.8,5.4118]
[1743261356148,0.39902876,1848.0,1847.9,5.41154]
[1743261356339,0.39902876,1848.0,1847.9,6.18854]
[1743261356527,2.26858945,1848.2,1847.9,5.41154]
[1743261356727,0.39902876,1848.0,1847.9,5.41154]
[1743261356950,2.26858945,1848.2,1847.9,5.41154]
[1743261357151,0.39902876,1848.0,1847.9,5.41154]
[1743261357329,2.26858945,1848.2,1847.9,5.41154]
[1743261357537,0.39902876,1848.0,1847.9,5.41154]
[1743261357741,2.26858945,1848.2,1847.9,5.41154]
[1743261357921,0.39902876,1848.0,1847.9,5.41154]
[1743261358853,2.26858945,1848.2,1847.9,10.82291]
[1743261359044,0.39750576,1848.0,1847.9,10.82291]
[1743261359242,2.26858945,1848.2,1847.9,5.41137]
[1743261359549,0.39750576,1848.0,1847.9,5.41137]
[1743261359747,3.15476497,1848.2,1847.9,5.41137]
[1743261359955,0.39750576,1848.0,1847.9,5.41137]
[1743261360118,3.15476497,1848.2,1847.9,5.41137]
[1743261360320,12.00379578,1848.3,1847.9,5.41137]
[1743261360321,0.39750576,1848.0,1847.9,5.41137]
[1743261360518,3.40792578,1848.3,1848.2,5.41066]
[1743261362137,3.0,1848.3,1848.2,5.41066]
[1743261362482,3.0,1848.3,1848.0,5.41118]
[1743261362780,3.0,1848.3,1848.1,5.133]
[1743261363367,3.0,1848.3,1848.1,10.54395]
[1743261363573,3.0,1848.3,1848.1,15.95477]
[1743261363738,3.0,1848.3,1848.1,10.54382]
[1743261363933,3.0,1848.3,1848.2,5.41066]
[1743261364682,3.0,1848.3,1848.1,10.54384]
[1743261364879,3.0,1848.3,1848.2,5.41066]
[1743261365341,3.52685895,1848.3,1848.1,5.133]
[1743261365544,4.32755895,1848.3,1848.1,5.133]
[1743261367551,2.26858945,1848.2,1847.9,5.132]
[1743261367769,2.26858945,1848.2,1847.9,10.54342]
[1743261368166,7.67925945,1848.2,1847.9,10.54342]
[1743261368377,3.0,1848.1,1847.9,10.54342]
[1743261370571,2.26858945,1848.2,1848.0,0.8133]
[1743261370747,5.26858945,1848.3,1848.0,11.63552]
[1743261370945,2.26858945,1848.3,1848.2,5.41066]
[1743261371165,6.06928945,1848.5,1848.2,5.41066]
[1743261371346,7.2171764,1848.5,1848.2,10.82117]
[1743261371673,7.2171764,1848.5,1848.2,5.41051]
[1743261371868,8.72940093,1848.8,1848.3,5.9614]
[1743261372072,7.67765945,1848.8,1848.4,5.40994]
[1743261372244,3.0,1848.7,1848.4,4.94784]
[1743261372441,7.67765945,1848.8,1848.4,4.94784]
[1743261372771,3.76776595,1848.7,1848.4,4.94784]
[1743261372974,3.0,1848.7,1848.4,4.94784]
[1743261374773,3.0,1848.7,1848.4,10.35774]
[1743261375175,3.0,1848.7,1848.5,6.23911]
[1743261375348,5.26858945,1849.0,1848.8,5.40877]
[1743261375547,6.52134172,1849.0,1848.9,5.40862]
[1743261375778,6.52134172,1849.0,1848.8,10.81755]
[1743261375977,6.52134172,1849.0,1848.8,6.23817]
[1743261376347,5.26858945,1849.0,1848.8,6.23817]
[1743261379165,0.32771846,1848.9,1848.8,6.23817]
[1743261381371,2.26858945,1849.2,1848.9,5.40843]
[1743261381567,5.26858945,1849.2,1848.9,5.40843]
[1743261381880,10.67636945,1849.2,1848.8,6.23816]
[1743261382092,2.26858945,1849.0,1848.8,5.40876]
[1743261382891,0.7582,1848.9,1848.6,6.23949]
[1743261383097,3.7582,1848.9,1848.6,11.36949]
[1743261383293,5.26858945,1848.8,1848.6,6.23949]
[1743261383514,5.26858945,1848.8,1848.6,5.13]
[1743261383668,5.8712684,1848.8,1848.6,5.13]
[1743261384169,5.8712684,1848.8,1848.6,10.53949]
[1743261384797,5.8712684,1848.8,1848.6,5.13]
[1743261386368,11.2801984,1848.8,1848.6,5.13]
[1743261386597,5.8712684,1848.8,1848.6,5.13]
[1743261387906,3.58712684,1848.7,1848.6,5.13]
[1743261389185,3.58712684,1848.7,1848.5,5.40961]
[1743261389385,3.58712684,1848.7,1848.5,10.53961]
[1743261389707,3.58712684,1848.7,1848.5,5.13]
[1743261391419,3.58712684,1848.7,1848.5,10.53974]
[1743261392489,3.0,1848.7,1848.5,10.53974]
[1743261392686,2.8712684,1848.8,1848.6,5.40949]
[1743261392891,3.0,1848.9,1848.7,5.40906]
[1743261394328,0.33044951,1848.8,1848.6,5.40944]
[1743261394521,3.0,1848.9,1848.6,5.40944]
[1743261394716,0.33026984,1848.7,1848.6,5.40944]
[1743261395020,3.0,1848.9,1848.6,5.40944]
[1743261395193,0.33026984,1848.7,1848.6,5.40944]
[1743261395393,3.0,1848.9,1848.6,5.40944]
[1743261395923,0.33044951,1848.8,1848.7,6.16223]
[1743261396221,0.33044951,1848.8,1848.7,6.778453]
[1743261396521,5.26858945,1849.2,1848.8,5.40865]
[1743261396820,10.67633945,1849.2,1848.9,5.129]
[1743261405029,5.26858945,1849.2,1848.9,10.53748]
[1743261405399,2.26858945,1849.0,1848.9,5.129]
[1743261405601,8.40932,1848.7,1848.3,5.41019]
[1743261405800,0.8284,1848.9,1848.1,5.4109]
[1743261405801,2.26858945,1848.4,1848.1,5.4109]
[1743261406046,3.0,1848.3,1848.0,6.16434]
[1743261406345,2.26858945,1848.2,1848.0,10.53914]
[1743261408344,2.26858945,1848.2,1848.1,5.41096]
[1743261408835,2.26858945,1848.2,1848.0,10.53902]
[1743261409203,3.33117246,1848.1,1848.0,10.53902]
[1743261409731,0.33117246,1848.1,1848.0,12.966576]
[1743261410039,0.33117246,1848.1,1848.0,11.37152]
[1743261410222,3.0,1848.3,1848.0,11.37152]
[1743261410420,0.30330295,1848.1,1848.0,11.37152]
[1743261410625,3.0,1848.3,1848.0,11.37152]
[1743261411104,0.3034827,1848.2,1848.0,11.37152]
[1743261411506,3.7872,1848.1,1847.8,5.41176]
[1743261411705,3.7872,1848.1,1847.8,10.54076]
[1743261411916,0.29806618,1848.0,1847.8,10.54076]
[1743261413123,0.29806618,1848.0,1847.9,5.41154]
[1743261413340,0.29806618,1848.0,1847.9,6.24404]
[1743261413547,0.29806618,1848.0,1847.9,7.92252]
[1743261413733,0.29806618,1848.0,1847.9,6.24404]
[1743261413941,5.26858945,1848.6,1848.2,5.41043]
[1743261414124,5.26858945,1848.6,1848.2,11.37193]
[1743261414761,2.26858945,1848.6,1848.3,5.41033]
[1743261414956,5.26858945,1848.6,1848.3,5.41033]
[1743261415261,0.52685895,1848.5,1848.3,5.41033]
[1743261415870,0.52685895,1848.5,1848.2,11.37208]
[1743261417772,5.93677895,1848.5,1848.2,5.9615]
[1743261417973,2.26858945,1848.4,1848.2,5.9615]
[1743261418273,2.26858945,1848.4,1848.2,5.129]
[1743261418453,2.26858945,1848.4,1848.2,10.53965]
[1743261422657,2.26858945,1848.4,1848.2,10.53946]
[1743261422858,2.26858945,1848.4,1848.3,5.41037]
[1743261423067,5.26858945,1848.6,1848.3,5.41037]
[1743261423280,6.41509539,1848.6,1848.3,5.41037]
[1743261424291,0.29921058,1848.5,1848.3,5.41037]
[1743261426545,0.29921058,1848.5,1848.4,6.20488]
[1743261426981,0.29921058,1848.5,1848.3,5.41021]
[1743261427150,3.0,1848.5,1848.3,5.41021]
[1743261427347,0.27370083,1848.4,1848.3,10.82041]
[1743261427683,0.27370083,1848.4,1848.3,13.289631]
[1743261427982,3.0,1848.9,1848.7,5.40909]
[1743261428371,3.0,1848.9,1848.6,10.53846]
[1743261429179,3.39789308,1848.9,1848.6,5.129]
[1743261429362,8.80657308,1848.9,1848.6,5.129]
[1743261429563,11.13595933,1848.9,1848.6,5.129]
[1743261429769,2.26858945,1848.8,1848.6,5.129]
[1743261430183,7.67753945,1848.8,1848.6,5.129]
[1743261430483,2.26858945,1848.8,1848.7,5.4092]
[1743261430669,2.26858945,1848.8,1848.6,10.53849]
[1743261434556,2.26858945,1848.8,1848.6,10.53834]
[1743261436886,2.26858945,1848.8,1848.6,15.9477]
[1743261437091,2.26858945,1848.8,1848.6,10.53834]
[1743261437260,2.26858945,1848.8,1848.7,5.4092]
[1743261438285,2.26858945,1848.8,1848.6,10.53834]